Workbook

Sheet CISTERNAS RN
B1: MINISTÉRIO DO DESENVOLVIMENTO REGIONAL - MDR
B2: COMPANHIA DE DESENVOLVIMENTO DOS VALES DO SÃO FRANCISCO E DO PARNAÍBA
B3: ÁREA DE REVITALIZAÇÃO E SUSTENTABILIDADE SOCIOAMBIENTAL
H4: BASES DE REFERÊNCIA.: SINAPI / ORSE / DNIT
H5: BASE | J5: AGOSTO / 2022
A6: OBJETO: | B6: TRANSPORTE E INSTALAÇÃO DE CISTERNAS PARA CAPTAÇÃO DA ÁGUA DA CHUVA – RIO GRANDE DO NORTE | H6: BDI SERVIÇOS | J6: ='B.D.I SERVIÇOS (SEM DES.)'!F31/100 -> 0.2545
H7: BDI MATERIAIS | J7: ='B.D.I MATERIAIS (SEM DES.)'!F31/100 -> 0.111
B8: PLANILHA ORÇAMENTÁRIA | H8: QTD DE CISTERNAS | J8: 1700
A10: ITEM | B10: ESPECIFICAÇÃO DOS SERVIÇOS | C10: BASE | D10: CÓDIGO | E10: UND | F10: QUANTIDADE ESTIMADA / CISTERNA | G10: QUANTIDADE TOTAL | H10: VALOR UNIT. S/BDI (R$) | I10: VALOR UNIT. C/BDI (R$) | J10: VALOR TOTAL (R$) | K10: VALOR (R$) / CISTERNA
A12: 01 | B12: SERVIÇOS | J12: =SUBTOTAL(9,J13:J38) -> 4353533.16 | K12: =J12/$J$8 -> 2560.901859
A14: 01.01 | B14: SERVIÇOS PRELIMINARES E CANTEIRO DE OBRAS | J14: =SUBTOTAL(9,J15:J18) -> 497017.37 | K14: =J14/$J$8 -> 292.3631588
A15: 01.01.01 | B15: Mobilização e desmobilização de pessoal e equipamentos | C15: Composição | D15: CPU0001 | E15: un | G15: 1 | H15: 18678.21 | I15: =ROUND(H15+H15*$J$6,2) -> 23431.81 | J15: =ROUND(ROUND(G15,2)*ROUND(I15,2),2) -> 23431.81
A16: 01.01.02 | B16: Instalação de canteiro de obras (locação de imóvel) | C16: Composição | D16: CPU0002 | E16: un | G16: 1 | H16: 37139.48 | I16: =ROUND(H16+H16*$J$6,2) -> 46591.48 | J16: =ROUND(ROUND(G16,2)*ROUND(I16,2),2) -> 46591.48
A17: 01.01.03 | B17: Administração local e manutenção do canteiro de obras | C17: Composição | D17: CPU0003 | E17: un | G17: 1 | H17: 264854.82 | I17: =ROUND(H17+H17*$J$6,2) -> 332260.37 | J17: =ROUND(ROUND(G17,2)*ROUND(I17,2),2) -> 332260.37
A18: 01.01.04 | B18: Placa de obra em chapa de aço galvanizado (01 placa de 3,60 x 1,80m por município) | C18: Composição | D18: CPU0004 | E18: m2 | G18: 129.6 | H18: 582.68 | I18: =ROUND(H18+H18*$J$6,2) -> 730.97 | J18: =ROUND(ROUND(G18,2)*ROUND(I18,2),2) -> 94733.71
A20: 01.02 | B20: INSTALAÇÃO DAS CISTERNAS | J20: =SUBTOTAL(9,J21:J25) -> 2036035.09 | K20: =J20/$J$8 -> 1197.6677
A21: 01.02.01 | B21: Escavação manual do buraco para instalação da cisterna (Prof. = 80 cm) | C21: Sinapi Ser | D21: 93358 | E21: m3 | F21: 7.7 | G21: 13090 | H21: 76,66 | I21: =ROUND(H21+H21*$J$6,2) -> 96.17 | J21: =ROUND(ROUND(G21,2)*ROUND(I21,2),2) -> 1258865.3
A22: 01.02.02 | B22: Regularização do fundo da escavação com solo-cimento (traço 1:20 - esp=10cm), inclusive preparação do solo-cimento com aproveitamento do material escavado peneirado | C22: Composição | D22: CPU0005 | E22: m3 | F22: 0.96 | G22: 1632 | H22: 270.26 | I22: =ROUND(H22+H22*$J$6,2) -> 339.04 | J22: =ROUND(ROUND(G22,2)*ROUND(I22,2),2) -> 553313.28
A23: 01.02.03 | B23: Reaterro das laterais da cisterna, compactado manualmente, com aproveitamento do material escavado | C23: Sinapi Ser | D23: 96995 | E23: m3 | F23: 1 | G23: 1700 | H23: 46,48 | I23: =ROUND(H23+H23*$J$6,2) -> 58.31 | J23: =ROUND(ROUND(G23,2)*ROUND(I23,2),2) -> 99127
A24: 01.02.04 | B24: Reaterro das laterais da cisterna, compactado manualmente, com material de empréstimo | C24: Composição | D24: CPU0006 | E24: m3 | F24: 0.11 | G24: 187 | H24: 194.76 | I24: =ROUND(H24+H24*$J$6,2) -> 244.33 | J24: =ROUND(ROUND(G24,2)*ROUND(I24,2),2) -> 45689.71
A25: 01.02.05 | B25: Espalhamento do material escavado não utilizado | C25: Composição | D25: CPU0007 | E25: m3 | F25: 5.74 | G25: 9758 | H25: 6.46 | I25: =ROUND(H25+H25*$J$6,2) -> 8.1 | J25: =ROUND(ROUND(G25,2)*ROUND(I25,2),2) -> 79039.8
A27: 01.03 | B27: SERVIÇOS COMPLEMENTARES | J27: =SUBTOTAL(9,J28:J32) -> 1621494 | K27: =J27/$J$8 -> 953.82
A28: 01.03.01 | B28: Assentamento de tubos e conexões (inclusive filtro separador de folhas) | C28: Composição | D28: CPU0008 | E28: m | F28: 15 | G28: 25500 | H28: 4.49 | I28: =ROUND(H28+H28*$J$6,2) -> 5.63 | J28: =ROUND(ROUND(G28,2)*ROUND(I28,2),2) -> 143565
A29: 01.03.02 | B29: Confecção e assentamento de calha em chapa de aço galvanizado nº 26, desenvolvimento de 30 cm, fixada na estrutura de madeira do telhado, incluso transporte vertical e material para confecção da calha | C29: Composição | D29: CPU0009 | E29: m | F29: 16 | G29: 27200 | H29: 39.97 | I29: =ROUND(H29+H29*$J$6,2) -> 50.14 | J29: =ROUND(ROUND(G29,2)*ROUND(I29,2),2) -> 1363808
A30: 01.03.03 | B30: Instalação da bomba manual, inclusive conjunto de sucção flutuante | C30: Composição | D30: CPU0010 | E30: un | F30: 1 | G30: 1700 | H30: 13.57 | I30: =ROUND(H30+H30*$J$6,2) -> 17.02 | J30: =ROUND(ROUND(G30,2)*ROUND(I30,2),2) -> 28934
A31: 01.03.04 | B31: Pintura do logotipo da Codevasf no corpo da cisterna | C31: Composição | D31: CPU0011 | E31: un | F31: 1 | G31: 1700 | H31: 6.67 | I31: =ROUND(H31+H31*$J$7,2) -> 7.41 | J31: =ROUND(ROUND(G31,2)*ROUND(I31,2),2) -> 12597
A32: 01.03.05 | B32: Bloco de ancoragem do tubo de descarga da calha (25x30x25cm) em concreto armado | C32: Composição | D32: CPU0012 | E32: un | F32: 1 | G32: 1700 | H32: 34.04 | I32: =ROUND(H32+H32*$J$6,2) -> 42.7 | J32: =ROUND(ROUND(G32,2)*ROUND(I32,2),2) -> 72590
A34: 01.04 | B34: TRANSPORTE DAS CISTERNAS | J34: =SUBTOTAL(9,J35:J37) -> 198986.7 | K34: =J34/$J$8 -> 117.051
A35: 01.04.01 | B35: Transporte comercial do local de armazenamento ao município de instalação em rodovia pavimentada | C35: Composição | D35: CPU0013 | E35: unxkm | F35: 35.85 | G35: 60945 | H35: 1.83 | I35: =ROUND(H35+H35*$J$6,2) -> 2.3 | J35: =ROUND(ROUND(G35,2)*ROUND(I35,2),2) -> 140173.5
A36: 01.04.02 | B36: Transporte comercial com caminhão carroceria 9 t, rodovia pavimentada, no município de instalação | C36: Composição | D36: CPU0014 | E36: unxkm | F36: 1.13 | G36: 1921 | H36: 4.45 | I36: =ROUND(H36+H36*$J$6,2) -> 5.58 | J36: =ROUND(ROUND(G36,2)*ROUND(I36,2),2) -> 10719.18
A37: 01.04.03 | B37: Transporte comercial com caminhão carroceria 9 t, rodovia em leito natural, no município de instalação | C37: Composição | D37: CPU0015 | E37: unxkm | F37: 3.38 | G37: 5746 | H37: 6.67 | I37: =ROUND(H37+H37*$J$6,2) -> 8.37 | J37: =ROUND(ROUND(G37,2)*ROUND(I37,2),2) -> 48094.02
A39: 02 | B39: FORNECIMENTO DE MATERIAIS | J39: =SUBTOTAL(9,J40:J61) -> 18781256.84 | K39: =J39/$J$8 -> 11047.79814
A41: 02.01 | B41: MATERIAIS PARA INSTALAÇÃO DAS CISTERNAS | J41: =SUBTOTAL(9,J42) -> 16998300 | K41: =J41/$J$8 -> 9999
A42: 02.01.01 | B42: Cisterna de polietileno 16.000l, com extravasor acoplado | C42: Cotação | D42: COT-0001 | E42: un | F42: 1 | G42: 1700 | H42: 9000 | I42: =ROUND(H42+H42*$J$7,2) -> 9999 | J42: =ROUND(ROUND(G42,2)*ROUND(I42,2),2) -> 16998300
A44: 02.02 | B44: MATERIAIS PARA INSTALAÇÃO DAS CISTERNAS (SERVIÇOS COMPLEMENTARES) | J44: =SUBTOTAL(9,J45:J60) -> 1782956.84 | K44: =J44/$J$8 -> 1048.798141
A45: 02.02.01 | B45: Placa de aluminio anodizado para numeração das cisternas | C45: Cotação | D45: COT-0002 | E45: un | F45: 1 | G45: 1700 | H45: 1.656666667 | I45: =ROUND(H45+H45*$J$7,2) -> 1.84 | J45: =ROUND(ROUND(G45,2)*ROUND(I45,2),2) -> 3128
A46: 02.02.02 | B46: Bomba dágua de membrana angular manual, produzida em plástico de engenharia atóxico, resistente a exposição prolongada ao sol | C46: Cotação | D46: COT-0003 | E46: un | F46: 1 | G46: 1700 | H46: 215.885 | I46: 239.85 | J46: 407745
A47: 02.02.03 | B47: Conjunto de sucção flutuante composta de: boia 15cm com argolas de fixação, abraçadeira 1", mangueira 1" pvc com reforço silicone espiralada (3,5m) e válvula de pé com crivo em pvc 1” | C47: Cotação | D47: COT-0008 | E47: un | F47: 1 | G47: 1700 | H47: 100.98 | I47: 112.19 | J47: 190723
A48: 02.02.04 | B48: Filtro separador de folhas e detritos | C48: Cotação | D48: COT-0004 | E48: un | F48: 1 | G48: 1700 | H48: 80.95 | I48: 89.94 | J48: 152898
A49: 02.02.05 | B49: Grelha hemisférica pvc flexível 88mm x 100 mm | C49: Cotação | D49: COT-0005 | E49: un | F49: 0.15 | G49: 255 | H49: 27.99 | I49: 31.1 | J49: 7930.5
A50: 02.02.06 | B50: Fita metalica perfurada, l = *18* mm, rolo de 30 m, carga recomendada = *30* kgf | C50: Sinapi Ins | D50: 14153 | E50: un | F50: 0.02 | G50: 34 | H50: 55,49 | I50: 61.65 | J50: 2096.1
A51: 02.02.07 | B51: Bucha de nylon, diametro do furo 8 mm, comprimento 40 mm, com parafuso de rosca soberba, cabeca chata, fenda simples, 4,8 x 50 mm | C51: Sinapi Ins | D51: 4350 | E51: un | F51: 4 | G51: 6800 | H51: 0,65 | I51: 0.72 | J51: 4896
A52: 02.02.08 | B52: Tubo de pvc para esgoto predial dn 100mm | C52: Sinapi Ins | D52: 9836 | E52: m | F52: 15 | G52: 25500 | H52: 16,67 | I52: 18.52 | J52: 472260
A53: 02.02.09 | B53: Tê sanitário pvc para esgoto predial dn 100mm | C53: Sinapi Ins | D53: 7091 | E53: un | F53: 2 | G53: 3400 | H53: 18,20 | I53: 20.22 | J53: 68748
A54: 02.02.10 | B54: Joelho pvc sold. 90g pb p/esgoto predial dn 100mm | C54: Sinapi Ins | D54: 3520 | E54: un | F54: 7 | G54: 11900 | H54: 9,48 | I54: 10.53 | J54: 125307
A55: 02.02.11 | B55: Luva simples pvc p/esg. predial dn 100mm | C55: Sinapi Ins | D55: 3899 | E55: un | F55: 6 | G55: 10200 | H55: 7,22 | I55: 8.02 | J55: 81804
A56: 02.02.12 | B56: Cap pvc, soldavel, dn 100 mm, serie normal, para esgoto predial | C56: Sinapi Ins | D56: 1200 | E56: un | F56: 1 | G56: 1700 | H56: 10,30 | I56: 11.44 | J56: 19448
A57: 02.02.13 | B57: Haste metalica para fixação de calha pluvial, zincada, dobrada 90 graus | C57: Sinapi Ins | D57: 11033 | E57: un | F57: 7 | G57: 11900 | H57: 9,16 | I57: 10.18 | J57: 121142
A58: 02.02.14 | B58: Parafuso zincado, sextavado, com rosca soberba, diâmetro 5/16", comprimento 40mm | C58: Sinapi Ins | D58: 11948 | E58: un | F58: 21 | G58: 35700 | H58: 0,68 | I58: 0.76 | J58: 27132
A59: 02.02.15 | B59: Perfil aço em T, abas iguais - 1" x 1/8" (1,18 kg/m) | C59: Orse Ins | D59: 13936 | E59: kg | F59: 4.5312 | G59: 7703.04 | H59: 10.37 | I59: 11.52 | J59: 88739.02
A60: 02.02.16 | B60: Arame galvanizado 18 bwg, d = 1,24MM (0,009 KG/M) | C60: Sinapi Ins | D60: 345 | E60: kg | F60: 0.112 | G60: 190.4 | H60: 42,36 | I60: 47.06 | J60: 8960.22
B62: VALOR TOTAL DA PLANILHA | J62: =SUBTOTAL(9,J12:J61) -> 23134790 | K62: =ROUND(J62/$J$8,2) -> 13608.7

Sheet B.D.I SERVIÇOS (SEM DES.)
A4: Ministério do Desenvolvimento Regional
A5: Companhia de Desenvolvimento do Vale do São Francisco e Parnaíba
A6: Codevasf/Sede
A8: DETALHAMENTO DO BDI - SERVIÇOS - RN
C12: Item | D12: Descrição | E12: Preço de Venda (%) | F12: Custo Direto (%)
C14: 1 | D14: Administração Central (A) | F14: 0.04
C16: 2 | D16: Impostos e Taxas (I) | F16: =E17+E18+E19+E20 -> 0.0865
C17: 2.1 | D17: ISS | E17: 0.05
C18: 2.2 | D18: PIS | E18: 0.0065
C19: 2.3 | D19: Cofins | E19: 0.03
C20: 2.4 | D20: CPRB (INSS) | E20: 0
C22: 3 | D22: Risco, seguro e garantia (R) | F22: =E23+E24+E25 -> 0.016
C23: 3.1 | D23: Risco | E23: 0.012
C24: 3.2 | D24: Seguro + garantia | E24: 0.004
C27: 4 | D27: Despesas Financeiras (DF) | F27: 0.0095
C29: 5 | D29: Lucro (L) | F29: 0.075
C31: BDI* (%): | F31: =ROUND(((((1+(F14+F22))*(1+F27)*(1+F29)/(1-F16))-1)*100),2) -> 25.45
B33: Considerações: | C33: Acórdão nº 2622/2013 - TCU /Plenário
C34: (*) BDI (%) = (((1+(AC+S+R+G))*(1+DF)*(1+L)/(1-I))-1)*100

Sheet B.D.I MATERIAIS (SEM DES.)
A4: Ministério do Desenvolvimento Regional
A5: Companhia de Desenvolvimento do Vale do São Francisco e Parnaíba
A6: Codevasf/Sede
A8: DETALHAMENTO DO BDI - FORNECIMENTO DE MATERIAIS - RN
C12: Item | D12: Descrição | E12: Preço de Venda (%) | F12: Custo Direto (%)
C14: 1 | D14: Administração Central (A) | F14: 0.0159
C16: 2 | D16: Impostos e Taxas (I) | F16: =E17+E18+E19+E20 -> 0.0365
C17: 2.1 | D17: ISS | E17: 0
C18: 2.2 | D18: PIS | E18: 0.0065
C19: 2.3 | D19: Cofins | E19: 0.03
C20: 2.4 | D20: CPRB (INSS) | E20: 0
C22: 3 | D22: Risco, seguro e garantia (R) | F22: =E23+E24+E25 -> 0.0086
C23: 3.1 | D23: Risco | E23: 0.0056
C24: 3.2 | D24: Seguro + garantia | E24: 0.003
C27: 4 | D27: Despesas Financeiras (DF) | F27: 0.0085
C29: 5 | D29: Lucro (L) | F29: 0.036
C31: BDI* (%): | F31: =ROUND(((((1+(F14+F22))*(1+F27)*(1+F29)/(1-F16))-1)*100),2) -> 11.1
B33: Considerações: | C33: Acórdão nº 2622/2013 - TCU /Plenário
C34: (*) BDI (%) = (((1+(AC+S+R+G))*(1+DF)*(1+L)/(1-I))-1)*100

Sheet COMPOSIÇÕES
B1: MINISTÉRIO DO DESENVOLVIMENTO REGIONAL - MDR
B2: COMPANHIA DE DESENVOLVIMENTO DOS VALES DO SÃO FRANCISCO E DO PARNAÍBA
B3: ÁREA DE REVITALIZAÇÃO E SUSTENTABILIDADE SOCIOAMBIENTAL
A5: OBJETO: | B5: TRANSPORTE E INSTALAÇÃO DE CISTERNAS PARA CAPTAÇÃO DA ÁGUA DA CHUVA – RIO GRANDE DO NORTE
A7: COMPOSICÕES DE CUSTOS UNITÁRIOS DE SERVICOS
A9: ITEM | B9: Fonte | C9: Código | D9: DESCRIÇÃO | E9: Unidade | F9: Quantidade | G9: Preço unitário | H9: Preço total
A11: 01.01.01 | C11: CPU0001 | D11: MOBILIZAÇÃO E DESMOBILIZAÇÃO DE PESSOAL E EQUIPAMENTOS | E11: UN | H11: =H14 -> 18678.21
B12: Sinapi Ser | C12: 73467 | D12: CAMINHÃO TOCO, PBT 14.300 KG, CARGA ÚTIL MÁX. 9.710 KG, DIST. ENTRE EIXOS 3,56 M, POTÊNCIA 185 CV, INCLUSIVE CARROCERIA FIXA ABERTA DE MADEI RA P/ TRANSPORTE GERAL DE CARGA SECA, DIMEN. APROX. 2,50 X 6,50 X 0,50 M - CHP DIURNO. AF_06/2014 | E12: CHP | F12: 84.3336 | G12: 182,72 | H12: =ROUND(F12*G12,2) -> 15409.44
B13: Sinapi Ser | C13: 88316 | D13: SERVENTE COM ENCARGOS COMPLEMENTARES | E13: H | F13: 168.6672 | G13: 19,38 | H13: =ROUND(F13*G13,2) -> 3268.77
C14: 01.01.01 | D14: Custo Direto Total | H14: =SUM(H12:H13) -> 18678.21
A16: 01.01.02 | C16: CPU0002 | D16: INSTALAÇÃO DE CANTEIRO DE OBRAS (LOCAÇÃO DE IMÓVEL) | E16: UN | H16: =H19 -> 37139.48
B17: DNIT | C17: B8951 | D17: Imóvel comercial | E17: m2xmês | F17: 700 | G17: 43.25 | H17: =ROUND(F17*G17,2) -> 30275
B18: DNIT | C18: B8959 | D18: Custos diversos | E18: ocupantexmês | F18: 56 | G18: 122.58 | H18: =ROUND(F18*G18,2) -> 6864.48
C19: 01.01.02 | D19: Custo Direto Total | H19: =SUM(H17:H18) -> 37139.48
A21: 01.01.03 | C21: CPU0003 | D21: ADMINISTRAÇÃO LOCAL E MANUTENÇÃO DO CANTEIRO DE OBRAS | E21: UN | H21: =H27 -> 264854.82
B22: Cotação | C22: COT-0009 | D22: Veículo leve - 53 kW (sem motorista) | E22: mês | F22: 7 | G22: 2418.222222 | H22: =ROUND(F22*G22,2) -> 16927.56
B23: Cotação | C23: COT-0011 | D23: Veículo picape 4x4 (sem motorista) | E23: mês | F23: 7 | G23: 8604.96 | H23: =ROUND(F23*G23,2) -> 60234.72
B24: Sinapi Ser | C24: 100319 | D24: ENGENHEIRO CIVIL JUNIOR COM ENCARGOS COMPLEMENTARES | E24: mês | F24: 7 | G24: 18.241,45 | H24: =ROUND(F24*G24,2) -> 127690.15
B25: Sinapi Ser | C25: 100321 | D25: TÉCNICO EM SEGURANÇA DO TRABALHO COM ENCARGOS COMPLEMENTARES | E25: mês | F25: 7 | G25: 5.111,26 | H25: =ROUND(F25*G25,2) -> 35778.82
B26: Sinapi Ser | C26: 93572 | D26: ENCARREGADO GERAL DE OBRAS COM ENCARGOS COMPLEMENTARES | E26: mês | F26: 7 | G26: 3.460,51 | H26: =ROUND(F26*G26,2) -> 24223.57
C27: 01.01.03 | D27: Custo Direto Total | H27: =SUM(H22:H26) -> 264854.82
A29: 01.01.04 | C29: CPU0004 | D29: PLACA DE OBRA EM CHAPA DE AÇO GALVANIZADO | E29: M2 | H29: =H37 -> 582.68
B30: Sinapi Ins | C30: 4417 | D30: SARRAFO DE MADEIRA NAO APARELHADA *2.5 X 7* CM. MACARANDUBA. ANGELIM OU EQUIVALENTE DA REGIAO | E30: M | F30: 1 | G30: 6,47 | H30: =ROUND(F30*G30,2) -> 6.47
B31: Sinapi Ins | C31: 4491 | D31: PONTALETE DE MADEIRA NAO APARELHADA *7.5 X 7.5* CM (3 X 3 ") PINUS. MISTA OU EQUIVALENTE DA REGIAO | E31: M | F31: 4 | G31: 15,65 | H31: 62.6
B32: Sinapi Ins | C32: 4813 | D32: PLACA DE OBRA (PARA CONSTRUCAO CIVIL) EM CHAPA GALVANIZADA *N. 22*. ADESIVADA. DE *2.0 X 1.125* M | E32: M2 | F32: 1 | G32: 445,00 | H32: 445
B33: Sinapi Ins | C33: 5075 | D33: PREGO DE ACO POLIDO COM CABECA 18 X 30 (2 3/4 X 10) | E33: KG | F33: 0.11 | G33: 21,87 | H33: 2.41
B34: Sinapi Ser | C34: 88262 | D34: CARPINTEIRO DE FORMAS COM ENCARGOS COMPLEMENTARES | E34: H | F34: 1 | G34: 23,43 | H34: 23.43
B35: Sinapi Ser | C35: 88316 | D35: SERVENTE COM ENCARGOS COMPLEMENTARES | E35: H | F35: 2 | G35: 19,38 | H35: 38.76
B36: Sinapi Ser | C36: 94962 | D36: CONCRETO MAGRO PARA LASTRO. TRAÇO 1:4.5:4.5 (CIMENTO/ AREIA MÉDIA/ BRITA 1) - PREPARO MECÂNICO COM BETONEIRA 400 L. AF_07/2016 | E36: M3 | F36: 0.01 | G36: 400,80 | H36: 4.01
C37: 01.01.05 | D37: Custo Direto Total | H37: =SUM(H30:H36) -> 582.68
A39: 01.02.02 | C39: CPU0005 | D39: REGULARIZAÇÃO DO FUNDO DA ESCAVAÇÃO COM SOLO-CIMENTO (TRAÇO 1:20 – ESP=10CM), INCLUSIVE PREPARAÇÃO DO SOLO-CIMENTO COM APROVEITAMENTO DO MATERIAL ESCAVADO PENEIRADO | E39: M3 | H39: =H42 -> 270.26
B40: Sinapi Ins | C40: 1379 | D40: CIMENTO PORTLAND COMPOSTO CP II-32 | E40: KG | F40: 57.12 | G40: 0,66 | H40: =ROUND(F40*G40,2) -> 37.7
B41: Sinapi Ser | C41: 88316 | D41: SERVENTE COM ENCARGOS COMPLEMENTARES | E41: H | F41: 12 | G41: 19,38 | H41: =ROUND(F41*G41,2) -> 232.56
C42: 01.02.02 | D42: Custo Direto Total | H42: =SUM(H40:H41) -> 270.26
A44: 01.02.04 | C44: CPU0006 | D44: REATERRO DAS LATERAIS DA CISTERNA, COMPACTADO MANUALMENTE, COM MATERIAL DE EMPRÉSTIMO | E44: M3 | H44: =H48 -> 194.76
B45: Sinapi Ins | C45: 370 | D45: AREIA MEDIA - POSTO JAZIDA/FORNECEDOR (RETIRADO NA JAZIDA, SEM TRANSPORTE) | E45: M3 | F45: 1.1 | G45: 97,50 | H45: =ROUND(F45*G45,2) -> 107.25
B46: Sinapi Ser | C46: 97912 | D46: TRANSPORTE COM CAMINHÃO BASCULANTE DE 6 M3, EM VIA URBANA EM LEITO NATURAL (UNIDADE: M3XKM). AF_01/2018 (10km) | E46: M3xKM | F46: 11 | G46: 3,73 | H46: =ROUND(F46*G46,2) -> 41.03
B47: Sinapi Ser | C47: 96995 | D47: REATERRO MANUAL APILOADO COM SOQUETE. AF_10/2017 | E47: M3 | F47: 1 | G47: 46,48 | H47: =ROUND(F47*G47,2) -> 46.48
C48: 01.02.03 | D48: Custo Direto Total | H48: =SUM(H45:H47) -> 194.76
A50: 01.02.05 | C50: CPU0007 | D50: ESPALHAMENTO DO MATERIAL ESCAVADO NÃO UTILIZADO PARA ATERRO | E50: M3 | H50: =H52 -> 6.46
B51: Sinapi Ser | C51: 88316 | D51: SERVENTE COM ENCARGOS COMPLEMENTARES | E51: H | F51: 0.3333333333 | G51: 19,38 | H51: =ROUND(F51*G51,2) -> 6.46
C52: 01.02.06 | D52: Custo Direto Total | H52: =SUM(H51) -> 6.46
A54: 01.03.01 | C54: CPU0008 | D54: ASSENTAMENTO DE TUBOS E CONEXÕES | E54: M | H54: =H57 -> 4.49
B55: Sinapi Ser | C55: 88267 | D55: ENCANADOR OU BOMBEIRO HIDRÁULICO COM ENCARGOS COMPLEMENTARES | E55: H | F55: 0.1074 | G55: 22,44 | H55: =ROUND(F55*G55,2) -> 2.41
B56: Sinapi Ser | C56: 88316 | D56: SERVENTE COM ENCARGOS COMPLEMENTARES | E56: H | F56: 0.1074 | G56: 19,38 | H56: =ROUND(F56*G56,2) -> 2.08
C57: 01.03.01 | D57: Custo Direto Total | H57: =SUM(H55:H56) -> 4.49
A59: 01.03.02 | C59: CPU0009 | D59: CONFECÇÃO E ASSENTAMENTO DE CALHA EM CHAPA DE AÇO GALVANIZADO Nº 26, DESENVOLVIMENTO DE 30CM, FIXADA NA ESTRUTURA DE MADEIRA DO TELHADO, INCLUSO TRANSPORTE VERTICAL E MATERIAL PARA CONFECÇÃO DA CALHA | E59: M | H59: =H65 -> 39.97
B60: Sinapi Ins | C60: 1109 | D60: CALHA QUADRADA DE CHAPA DE ACO GALVANIZADA NUM 26, CORTE 30 CM (SINAPI INS 1109 ADAPTADO) | E60: M | F60: 1.05 | G60: 29,93 | H60: =ROUND(F60*G60,2) -> 31.43
B61: Sinapi Ins | C61: 142 | D61: SELANTE ELASTICO MONOCOMPONENTE A BASE DE POLIURETANO (PU) PARA JUNTAS DIVERSAS | E61: 310ML | F61: 0.0038 | G61: 34,48 | H61: =ROUND(F61*G61,2) -> 0.13
B62: Sinapi Ins | C62: 5104 | D62: REBITE DE ALUMINIO VAZADO DE REPUXO. 3.2 X 8 MM (1KG = 1025 UNIDADES) | E62: KG | F62: 0.0012 | G62: 67,02 | H62: =ROUND(F62*G62,2) -> 0.08
B63: Sinapi Ser | C63: 88316 | D63: SERVENTE COM ENCARGOS COMPLEMENTARES | E63: H | F63: 0.25 | G63: 19,38 | H63: =ROUND(F63*G63,2) -> 4.85
B64: Sinapi Ser | C64: 88323 | D64: TELHADISTA COM ENCARGOS COMPLEMENTARES | E64: H | F64: 0.15 | G64: 23,22 | H64: =ROUND(F64*G64,2) -> 3.48
C65: 01.03.02 | D65: Custo Direto Total | H65: =SUM(H60:H64) -> 39.97
A67: 01.03.03 | C67: CPU0010 | D67: INSTALAÇÃO DA BOMBA MANUAL, INCLUSIVE CONJUNTO DE SUCÇÃO FLUTUANTE | E67: UN | H67: =H69 -> 13.57
B68: Sinapi Ser | C68: 88316 | D68: SERVENTE COM ENCARGOS COMPLEMENTARES | E68: H | F68: 0.7 | G68: 19,38 | H68: =ROUND(F68*G68,2) -> 13.57
C69: 01.03.03 | D69: Custo Direto Total | H69: =SUM(H68) -> 13.57
A71: 01.03.04 | C71: CPU0011 | D71: PINTURA DO LOGOTIPO DA CODEVASF NO CORPO DA CISTERNA | E71: UN | H71: =H74 -> 6.67
B72: Sinapi Ins | C72: 7304 | D72: TINTA EPOXI BASE AGUA PREMIUM, BRANCA | E72: L | F72: 0.01046 | G72: 64,51 | H72: =ROUND(F72*G72,2) -> 0.67
B73: Sinapi Ser | C73: 88312 | D73: PINTOR PARA TINTA EPÓXI COM ENCARGOS COMPLEMENTARES | E73: H | F73: 0.25 | G73: 23,99 | H73: =ROUND(F73*G73,2) -> 6
C74: 01.03.04 | D74: Custo Direto Total | H74: =SUM(H72:H73) -> 6.67
A76: 01.03.05 | C76: CPU0012 | D76: BLOCO DE ANCORAGEM 25 X 30 X 25CM | E76: UN | H76: =H82 -> 34.04
B77: Sinapi Ser | C77: 96543 | D77: ARMAÇÃO DE BLOCO, VIGA BALDRAME E SAPATA UTILIZANDO AÇO CA-60 DE 5 MM - MONTAGEM. AF_06/2017 | E77: KG | F77: 0.655755 | G77: 19,50 | H77: =ROUND(F77*G77,2) -> 12.79
B78: Sinapi Ser | C78: 94975 | D78: CONCRETO FCK = 15MPA. TRAÇO 1:3.4:3.5 (CIMENTO/ AREIA MÉDIA/ BRITA 1) - PREPARO MANUAL. AF_07/2016 | E78: M3 | F78: 0.016393875 | G78: 483,72 | H78: =ROUND(F78*G78,2) -> 7.93
B79: Sinapi Ser | C79: 97086 | D79: FABRICAÇÃO. MONTAGEM E DESMONTAGEM DE FORMA PARA RADIER. EM MADEIRA SERRADA. 4 UTILIZAÇÕES. AF_09/2017 | E79: M2 | F79: 0.06875 | G79: 116,88 | H79: =ROUND(F79*G79,2) -> 8.04
B80: Sinapi Ser | C80: 88309 | D80: PEDREIRO COM ENCARGOS COMPLEMENTARES | E80: H | F80: 0.1 | G80: 23,68 | H80: =ROUND(F80*G80,2) -> 2.37
B81: Sinapi Ser | C81: 88316 | D81: SERVENTE COM ENCARGOS COMPLEMENTARES | E81: H | F81: 0.15 | G81: 19,38 | H81: =ROUND(F81*G81,2) -> 2.91
C82: 01.03.04 | D82: Custo Direto Total | H82: =SUM(H77:H81) -> 34.04
A84: 01.04.01 | C84: CPU0013 | D84: TRANSPORTE COMERCIAL DO LOCAL DE ARMAZENAMENTO AO MUNICÍPIO DE INSTALAÇÃO EM RODOVIA PAVIMENTADA | E84: UNXKM | H84: =H87 -> 1.83
B85: Sinapi Ser | C85: 91031 | D85: CAMINHÃO TRUCADO (C/ TERCEIRO EIXO) ELETRÔNICO - POTÊNCIA 231CV - PBT = 22000KG - DIST. ENTRE EIXOS 5170 MM - INCLUI CARROCERIA FIXA ABERTA DE MADEIRA - CHP DIURNO. AF_06/2015 | E85: CHP | F85: 0.005737234653 | G85: 280,30 | H85: =ROUND(F85*G85,2) -> 1.61
B86: Sinapi Ser | C86: 88316 | D86: SERVENTE COM ENCARGOS COMPLEMENTARES | E86: H | F86: 0.01147446931 | G86: 19,38 | H86: =ROUND(F86*G86,2) -> 0.22
C87: 01.04.01 | D87: Custo Direto Total | H87: =SUM(H85:H86) -> 1.83
A89: 01.04.02 | C89: CPU0014 | D89: TRANSPORTE COMERCIAL COM CAMINHAO CARROCERIA 9 T, RODOVIA PAVIMENTADA, NO MUNICÍPIO DE INSTALAÇÃO | E89: UNXKM | H89: =H92 -> 4.45
B90: Sinapi Ser | C90: 73467 | D90: CAMINHÃO TOCO, PBT 14.300 KG, CARGA ÚTIL MÁX. 9.710 KG, DIST. ENTRE EIXOS 3,56 M, POTÊNCIA 185 CV, INCLUSIVE CARROCERIA FIXA ABERTA DE MADEI RA P/ TRANSPORTE GERAL DE CARGA SECA, DIMEN. APROX. 2,50 X 6,50 X 0,50 M - CHP DIURNO. AF_06/2014 | E90: CHP | F90: 0.02008032129 | G90: 182,72 | H90: =ROUND(F90*G90,2) -> 3.67
B91: Sinapi Ser | C91: 88316 | D91: SERVENTE COM ENCARGOS COMPLEMENTARES | E91: H | F91: 0.04016064257 | G91: 19,38 | H91: =ROUND(F91*G91,2) -> 0.78
C92: 01.04.02 | D92: Custo Direto Total | H92: =SUM(H90:H91) -> 4.45
A94: 01.04.03 | C94: CPU0015 | D94: TRANSPORTE COMERCIAL COM CAMINHAO CARROCERIA 9 T, RODOVIA EM LEITO NATURAL, NO MUNICÍPIO DE INSTALAÇÃO | E94: UNXKM | H94: =H97 -> 6.67
B95: Sinapi Ser | C95: 73467 | D95: CAMINHÃO TOCO, PBT 14.300 KG, CARGA ÚTIL MÁX. 9.710 KG, DIST. ENTRE EIXOS 3,56 M, POTÊNCIA 185 CV, INCLUSIVE CARROCERIA FIXA ABERTA DE MADEI RA P/ TRANSPORTE GERAL DE CARGA SECA, DIMEN. APROX. 2,50 X 6,50 X 0,50 M - CHP DIURNO. AF_06/2014 | E95: CHP | F95: 0.03012048193 | G95: 182,72 | H95: =ROUND(F95*G95,2) -> 5.5
B96: Sinapi Ser | C96: 88316 | D96: SERVENTE COM ENCARGOS COMPLEMENTARES | E96: H | F96: 0.06024096386 | G96: 19,38 | H96: =ROUND(F96*G96,2) -> 1.17
C97: 01.04.03 | D97: Custo Direto Total | H97: =SUM(H95:H96) -> 6.67

Sheet Cronograma Físico-Financeiro
C1: MINISTÉRIO DO DESENVOLVIMENTO REGIONAL - MDR
C2: COMPANHIA DE DESENVOLVIMENTO DOS VALES DO SÃO FRANCISCO E DO PARNAÍBA
C3: ÁREA DE REVITALIZAÇÃO E SUSTENTABILIDADE SOCIOAMBIENTAL
A6: OBJETO: | B6: TRANSPORTE E INSTALAÇÃO DE CISTERNAS PARA CAPTAÇÃO DA ÁGUA DA CHUVA – RIO GRANDE DO NORTE
A8: CRONOGRAMA FÍSICO-FINANCEIRO
A10: ITEM | B10: ESPECIFICAÇÃO DOS SERVIÇOS | C10: VALOR TOTAL (R$) | D10: Mês 01 | E10: Mês 02 | F10: Mês 03 | G10: Mês 04 | H10: Mês 05 | I10: Mês 06 | J10: Mês 07 | K10: Total
A11: 01.01 | B11: ='CISTERNAS RN'!B14 -> SERVIÇOS PRELIMINARES E CANTEIRO DE OBRAS | C11: ='CISTERNAS RN'!J14 -> 497017.37 | D11: =C11/7 -> 71002.48143 | E11: =D11 -> 71002.48143 | F11: =E11 -> 71002.48143 | G11: =F11 -> 71002.48143 | H11: =G11 -> 71002.48143 | I11: =H11 -> 71002.48143 | J11: =C11-SUM(D11:I11) -> 71002.48143 | K11: =SUM(D11:J11) -> 497017.37
A12: 01.02 | B12: ='CISTERNAS RN'!B20 -> INSTALAÇÃO DAS CISTERNAS | C12: ='CISTERNAS RN'!J20 -> 2036035.09 | D12: =C12/6/2 -> 169669.5908 | E12: =C12/6 -> 339339.1817 | F12: =E12 -> 339339.1817 | G12: 339339.1817 | H12: 339339.1817 | I12: 339339.1817 | J12: 169669.5908 | K12: 2036035.09
A13: 01.03 | B13: ='CISTERNAS RN'!B27 -> SERVIÇOS COMPLEMENTARES | C13: ='CISTERNAS RN'!J27 -> 1621494 | D13: =C13/6/2 -> 135124.5 | E13: =C13/6 -> 270249 | F13: 270249 | G13: 270249 | H13: 270249 | I13: 270249 | J13: 135124.5 | K13: 1621494
A14: 01.04 | B14: ='CISTERNAS RN'!B34 -> TRANSPORTE DAS CISTERNAS | C14: ='CISTERNAS RN'!J34 -> 198986.7 | D14: =C14/6/2 -> 16582.225 | E14: =C14/6 -> 33164.45 | F14: 33164.45 | G14: 33164.45 | H14: 33164.45 | I14: 33164.45 | J14: 16582.225 | K14: 198986.7
A15: 02.01 | B15: ='CISTERNAS RN'!B41 -> MATERIAIS PARA INSTALAÇÃO DAS CISTERNAS | C15: ='CISTERNAS RN'!J41 -> 16998300 | D15: =C15/6/2 -> 1416525 | E15: =C15/6 -> 2833050 | F15: 2833050 | G15: 2833050 | H15: 2833050 | I15: 2833050 | J15: 1416525 | K15: 16998300
A16: 02.02 | B16: ='CISTERNAS RN'!B44 -> MATERIAIS PARA INSTALAÇÃO DAS CISTERNAS (SERVIÇOS COMPLEMENTARES) | C16: ='CISTERNAS RN'!J44 -> 1782956.84 | D16: =C16/6/2 -> 148579.7367 | E16: =C16/6 -> 297159.4733 | F16: 297159.4733 | G16: 297159.4733 | H16: 297159.4733 | I16: 297159.4733 | J16: 148579.7367 | K16: 1782956.84
B17: VALOR TOTAL DA PLANILHA | C17: =SUM(C11:C16) -> 23134790 | D17: 1957483.534 | E17: 3843964.586 | F17: 3843964.586 | G17: 3843964.586 | H17: 3843964.586 | I17: 3843964.586 | J17: 1957483.534 | K17: 23134790
B18: PERCENTUAL EXECUTADO | C18: =C17/C17 -> 1 | D18: =D17/$C$17 -> 0.08461211595 | E18: 0.1661551536 | F18: 0.1661551536 | G18: 0.1661551536 | H18: 0.1661551536 | I18: 0.1661551536 | J18: 0.08461211595 | K18: 1
